Cogmind - Beta 12 @@@ ROGUE MODE // 2023.06.12 @ 03:36:40 Player: Bil Tuesday Result: Destroyed by D-53 Grenadier with Mini Grenade Launcher Performance ------------- Evolutions (1) 500 Regions Visited (4) 800 Robots Destroyed (59) 295 Value Destroyed (1304) 1304 Prototype IDs (3) 60 Alien Tech Used (0) 0 Bonus (71) 71 TOTAL SCORE: 3030 Bonus ------- High Alert Combat Kills 11 Follower Combat Kills 60 Cogmind --------- Core Integrity 0/400 Matter 263/300 Energy 19/100 System Corruption 1% Temperature Cool (20) Movement Walking (410) Ox4 Location -9/Mines Parts ------- > --- POWER (1) -------- (None) > --- PROPULSION (2) --- Titanium Leg > --- UTILITY (4) ------ Huge Storage Unit > --- WEAPON (2) ------- Improved Medium Laser Light Assault Rifle > --- INVENTORY (25) --- Heavy Ion Engine Heavy Ion Engine Faulty Heavy Ion Engine Light Deuterium Engine Titanium Leg Titanium Leg Compact Wheel High-capacity Matter Pod (200) Compact Matter Pod (150) Structural Scanner Visual Processing Unit Signal Interpreter Terrain Scanner Terrain Scan Processor ECM Suite Improved Medium Laser Particle Cannon Grenade Launcher Rocket Launcher Rocket Launcher Peak State ------------ > --- POWER ------------ Light Deuterium Engine > --- PROPULSION ------- Titanium Leg Titanium Leg > --- UTILITY ---------- Improved Heat Sink Huge Storage Unit Weight Redist. System Power Shielding > --- WEAPON ----------- Improved Medium Laser Improved Medium Laser > --- INVENTORY -------- Light Deuterium Engine Titanium Leg Titanium Leg Compact Wheel Compact Wheel High-capacity Matter Pod Compact Matter Pod Structural Scanner Visual Processing Unit Sensor Array Terrain Scanner ECM Suite Core Shielding Improved Medium Laser Improved Medium Laser Improved Medium Laser Particle Cannon Heavy Assault Rifle Grenade Launcher Rocket Launcher Rocket Launcher [Rating: 26] Favorites ----------- Power Ion Engine Engine Ion Engine Power Core Light Nuclear Core Propulsion Aluminum Leg Leg Aluminum Leg Wheel Wheel Utility Power Shielding Device Weight Redist. System Storage Huge Storage Unit Processor Targeting Computer Protection Power Shielding Weapon Assault Rifle Energy Gun Improved Medium Laser Ballistic Gun Assault Rifle Ballistic Cannon Light Cannon Special Weapon Welding Torch Slashing Weapon Mining Claw Special Melee Weapon Datajack Build | -11 -10 -10 -9 -9 ------- Run | Jun Mat Min Mat Min Slots Evolved 2 | . . . 2 . Power . | . . . . . Propulsion . | . . . . . Utility 2 | . . . 2 . Weapon . | . . . . . Parts Attached 96 | 6 32 14 38 6 Power 12 | 1 3 2 6 . Engine 10 | 1 3 1 5 . Core 2 | . . 1 1 . Reactor . | . . . . . Propulsion 26 | 2 8 2 10 4 Treads . | . . . . . Leg 20 | 2 8 2 6 2 Wheel 6 | . . . 4 2 Hover . | . . . . . Flight . | . . . . . Utility 17 | 1 5 3 8 . Device 7 | . 1 1 5 . Storage 6 | 1 3 2 . . Processor 1 | . . . 1 . Hackware . | . . . . . Protection 3 | . 1 . 2 . Artifact . | . . . . . Weapon 41 | 2 16 7 14 2 Energy Gun 7 | 2 . 1 3 1 Energy Cannon . | . . . . . Ballistic Gun 22 | . 11 4 6 1 Ballistic Cannon 1 | . . . 1 . Launcher . | . . . . . Special Weapon 1 | . 1 . . . Impact Weapon . | . . . . . Slashing Weapon 3 | . 2 . 1 . Piercing Weapon . | . . . . . Special Melee Weapon 7 | . 2 2 3 . Unidentified Prototypes 1 | . . . 1 . Parts Lost 21 | . 1 . 11 9 Power 2 | . . . 1 1 Propulsion 4 | . . . 1 3 Utility 6 | . . . 3 3 Weapon 9 | . 1 . 6 2 Highest Loss Streak 9 | . 1 . 4 9 To Critical Strikes 1 | . . . 1 . Average Slot Usage (%) 95 | . 94 99 93 87 Engine 11 | . 14 9 8 9 Core 1 | . . 4 2 . Leg 24 | . 28 28 18 . Wheel 1 | . . . 2 17 Device 8 | . . 14 14 29 Storage 14 | . 18 14 11 11 Protection 8 | . 7 . 16 . Energy Gun 4 | . 3 1 8 19 Ballistic Gun 15 | . 16 24 8 . Special Melee Weapon 2 | . 3 1 1 . Naked Turns . | . . . . . Heaviest Build 96 | 14 33 88 96 96 Greatest Support 40 | 20 20 26 40 32 Greatest Overweight (x) 5 | 1 1 3 5 4 Average Overweight (x) 1 | . . 1 3 2 Largest Inventory Capacity 25 | 8 15 25 25 25 Average Capacity 18 | 7 12 20 25 25 Most Carried 25 | 6 15 21 25 24 Average Carried 14 | 1 10 16 20 23 Final Capacity 25 | 8 15 25 25 25 Final Carried 25 | 2 15 19 25 20 Class Distribution -------------------- 63% | Mutant 36% | Scavenger-Mutant Dominant Class ---------------- Mutant | -10/Materials Scavenger-Mutant | -10/Mines Mutant | -9/Materials Scavenger-Mutant | -9/Mines Resources | -11 -10 -10 -9 -9 ----------- Run | Jun Mat Min Mat Min Matter Collected 1814 | 260 753 198 603 . Remotely . | . . . . . Salvage Created 2048 | 67 692 139 1138 12 Parts 116 | 3 41 10 62 . Haulers Intercepted 2 | . . . 2 . Recyclers Shooed 3 | . 3 . . . Parts Field Recycled . | . . . . . Retrieved Matter . | . . . . . Parts Self-Destructed . | . . . . . Prevented . | . . . . . Kills | -11 -10 -10 -9 -9 ------- Run | Jun Mat Min Mat Min Combat Hostiles Destroyed 41 | . 14 4 22 1 Guns 39 | . 13 4 21 1 Cannons 1 | . . . 1 . Classes Destroyed 12 | 1 4 . 6 1 Worker 2 | . 1 1 . . Builder 2 | . . . 2 . Tunneler 1 | . . . 1 . Hauler 2 | . . . 2 . Recycler 5 | 1 2 . 2 . Operator 1 | . . . 1 . Watcher 6 | . 3 . 3 . Swarmer 14 | . 5 2 7 . Grunt 21 | . 9 2 10 . Brawler 1 | . . . 1 . Sentry 4 | . . . 4 . Assembled 1 | . . . . 1 Best Kill Streak 4 | 1 3 2 4 1 Combat Bots Only 4 | . 3 2 4 1 Max Kills in Single Turn 2 | 1 2 1 2 1 Gunslinging 1 | . 1 . . . Exploded . | . . . . . Melee . | . . . . . Uniques/NPCs Destroyed . | . . . . . Combat | -11 -10 -10 -9 -9 -------- Run | Jun Mat Min Mat Min Damage Taken 3058 | . 439 353 1588 678 Core 596 | . 65 120 250 161 Absorbed by Shields . | . . . . . Redirected to Shielding 90 | . 5 . 85 . Core Remaining (%) 63 | 100 . 26 . . Volleys Fired 198 | 1 68 21 98 10 Largest 2 | 2 2 2 2 2 Hottest 112 | 80 80 60 112 112 Shots Fired 364 | 2 120 39 185 18 Gun 333 | 2 117 39 157 18 Cannon 28 | . . . 28 . Launcher . | . . . . . Special 3 | . 3 . . . Kinetic 193 | . 82 32 77 2 Thermal 127 | . 3 . 108 16 Explosive . | . . . . . Electromagnetic 44 | 2 35 7 . . Robot Hit Streak 10 | 1 10 5 9 3 Robot Miss Streak 5 | . 5 4 4 2 Penetration Max . | . . . . . Secondary Targets 8 | . 4 . 3 1 Max Gunslinging Chain 1 | . 1 . 1 1 Shots Hit Robots 236 | 1 86 23 116 10 Core Hits 93 | 1 31 13 45 3 Critical Kills 1 | . 1 . . . Critical Parts Destroyed 1 | . . 1 . . Critical Strikes 9 | . 3 1 4 1 Burn 5 | . . . 4 1 Destroy 2 | . 1 1 . . Corrupt 2 | . 2 . . . Melee Attacks 33 | . 25 4 4 . Impact . | . . . . . Slashing 3 | . 2 . 1 . Piercing . | . . . . . Sneak Attacks 27 | . 19 4 4 . Combat Hostiles . | . . . . . Follow-up Attacks . | . . . . . Damage Inflicted 3049 | 15 860 203 1811 160 Guns 2666 | 15 860 203 1428 160 Cannons 334 | . . . 334 . Explosions . | . . . . . Melee 46 | . . . 46 . Ramming 3 | . . . 3 . Kinetic 1602 | . 560 181 852 9 Thermal 1061 | . . . 910 151 Explosive . | . . . . . Electromagnetic 337 | 15 300 22 . . Impact . | . . . . . Slashing 46 | . . . 46 . Piercing . | . . . . . Highest Corruption 1 | . . . 1 1 Average Corruption 1 | . . . 1 1 Corruption Purged . | . . . . . Corruption Blocked . | . . . . . Effects 9 | . . . 9 . Message Errors 3 | . . . 3 . Matter Fused 3 | . . . 3 . Heat Flow Errors 1 | . . . 1 . Energy Discharges 1 | . . . 1 . Parts Rejected 1 | . . . 1 . Overload Shots . | . . . . . Overflow Damage . | . . . . . Projectiles . | . . . . . Explosions . | . . . . . Melee . | . . . . . Knockbacks 7 | . . . 7 . Impact . | . . . . . Kinetic 6 | . . . 6 . Secondary 1 | . . . 1 . Self-Inflicted Damage . | . . . . . Shots . | . . . . . Rammed . | . . . . . Targets Rammed 1 | . . . 1 . Kicked 1 | . . . 1 . Crushed . | . . . . . Highest Temperature 277 | 18 213 40 277 20 Average Temperature 69 | 12 105 17 67 15 Received Heat Transfer 843 | . 195 117 531 . Siege Activations . | . . . . . Robots Corrupted 1 | . 1 . . . Combat Hostiles 1 | . 1 . . . Parts Fried 4 | . 4 . . . Impact Corruptions . | . . . . . Robots Melted . | . . . . . Combat Hostiles . | . . . . . Parts Melted 6 | . . . 6 . Heat Transferred 2812 | . . . 2405 407 Parts Sabotaged . | . . . . . Parts Stolen . | . . . . . Parts Stripped . | . . . . . Power Chain Reactions . | . . . . . Missiles Intercepted . | . . . . . Alert | -11 -10 -10 -9 -9 ------- Run | Jun Mat Min Mat Min Peak Influence 451 | 5 201 132 451 157 Initial 142 | . 3 12 . 142 Average 79 | 1 76 37 109 133 Maximum Alert Level 2 | . 1 . 2 . Low Security (%) 93 | 100 98 100 81 100 Level 1 4 | . 1 . 10 . Level 2 2 | . . . 7 . Level 3 . | . . . . . Level 4 . | . . . . . Level 5 . | . . . . . High Security . | . . . . . Max Security . | . . . . . Squads Dispatched 4 | . 3 . 1 . Investigation 3 | . 2 . 1 . Extermination . | . . . . . Reinforcement 1 | . 1 . . . Assault . | . . . . . Garrison . | . . . . . Intercept . | . . . . . Searches Triggered . | . . . . . Construction Impeded . | . . . . . Haulers Reinforced . | . . . . . Active Scanning Responses . | . . . . . Cargo Convoy Interrupts . | . . . . . Stealth | -11 -10 -10 -9 -9 --------- Run | Jun Mat Min Mat Min Distress Signals 5 | . . . 5 . Communications Jammed . | . . . . . Distress Signals . | . . . . . Times Spotted 89 | . 32 8 37 12 Peak Tracking Total 15 | . 3 3 5 15 Tactical Retreats 7 | . 2 1 4 . Traps | -11 -10 -10 -9 -9 ------- Run | Jun Mat Min Mat Min Traps Triggered 5 | . 2 . 3 . Indirectly . | . . . . . Trap Hack Attempts . | . . . . . Triggered . | . . . . . Disarmed . | . . . . . Reprogrammed 6 | . 6 . . . Reused 1 | . 1 . . . Traps Extracted . | . . . . . Installed . | . . . . . Triggered 1 | . 1 . . . Machines | -11 -10 -10 -9 -9 ---------- Run | Jun Mat Min Mat Min Machines Disabled 3 | . 1 . 2 . Max in Single Turn 1 | . 1 . 1 . Machines Repaired . | . . . . . Machines Sabotaged . | . . . . . Overloaded Fab Kills . | . . . . . Hacking | -11 -10 -10 -9 -9 --------- Run | Jun Mat Min Mat Min Machines Accessed 9 | . 5 . 4 . Terminals 8 | . 4 . 4 . Fabricators . | . . . . . Repair Stations . | . . . . . Recycling Units 1 | . 1 . . . Scanalyzers . | . . . . . Garrison Access . | . . . . . Total Hacks 25 | . 12 . 13 . Successful 19 | . 9 . 10 . Failed 6 | . 3 . 3 . Catastrophic . | . . . . . Database Lockouts . | . . . . . Manual 1 | . 1 . . . Terminals 23 | . 10 . 13 . Fabricators . | . . . . . Repair Stations . | . . . . . Recycling Units 2 | . 2 . . . Scanalyzers . | . . . . . Garrison Access . | . . . . . Terminal Hacks 17 | . 7 . 10 . Record 10 | . 2 . 8 . Robot Analysis 1 | . . . 1 . Prototype ID Bank 1 | . 1 . . . Emergency Access Points 1 | . 1 . . . Alert Level 1 | . 1 . . . Locate Traps 1 | . 1 . . . Reprogram Traps 1 | . 1 . . . Dispatch Records 1 | . . . 1 . Fabricator Hacks . | . . . . . Repair Station Hacks . | . . . . . Recycling Unit Hacks 2 | . 2 . . . Report Inventory 1 | . 1 . . . Retrieve Components 1 | . 1 . . . Scanalyzer . | . . . . . Garrison Access Hacks . | . . . . . Unauthorized Hacks . | . . . . . Terminals . | . . . . . Fabricators . | . . . . . Repair Stations . | . . . . . Recycling Units . | . . . . . Scanalyzers . | . . . . . Garrison Access . | . . . . . Data Cores Recovered 1 | . . . 1 . Used 1 | . . . 1 . Hacking Detections 6 | . 3 . 3 . Full Trace Events 2 | . 1 . 1 . Feedback Events . | . . . . . Feedback Blocked . | . . . . . Robot Schematics Acquired . | . . . . . Robots Built . | . . . . . Authchips . | . . . . . Time . | . . . . . Total Robot Build Rating . | . . . . . Part Schematics Acquired . | . . . . . Parts Built . | . . . . . Authchips . | . . . . . Time . | . . . . . Total Part Build Rating . | . . . . . Parts Repaired . | . . . . . Time . | . . . . . Parts Recycled . | . . . . . Recycled Matter . | . . . . . Retrieved Matter . | . . . . . Retrieved Components 9 | . 9 . . . Parts Scanalyzed . | . . . . . Part Schematics Acquired . | . . . . . Parts Damaged . | . . . . . Bothacking | -11 -10 -10 -9 -9 ------------ Run | Jun Mat Min Mat Min Used RIF Installer . | . . . . . Robots Hacked 12 | . 7 3 2 . Non-combat 12 | . 7 3 2 . Combat . | . . . . . Robot Hacks Applied 21 | . 14 4 3 . parse_system 10 | . 8 1 1 . no_distress 9 | . 5 3 1 . find_recycling 1 | . . . 1 . check_alert 1 | . 1 . . . Relay Couplers Released . | . . . . . Fabnet Peak Effective % . | . . . . . Robots Rewired . | . . . . . Allies Hacked . | . . . . . Hacks Repelled . | . . . . . Allies | -11 -10 -10 -9 -9 -------- Run | Jun Mat Min Mat Min Total Allies 3 | . . 3 . . Largest Group 3 | . . 3 1 . Highest-Rated Group 40 | . . 40 8 . Highest-Rated Ally 16 | . . 16 8 . Total Orders 3 | . . 3 . . GUARD 3 | . . 3 . . Ally Attacks 9 | . . 9 . . Total Damage 66 | . . 66 . . Kills 2 | . . 2 . . Allies Corrupted . | . . . . . Allies Melted . | . . . . . Intel | -11 -10 -10 -9 -9 ------- Run | Jun Mat Min Mat Min Robot Analysis Total 1 | . . . 1 . Derelict Logs Recovered 2 | . . 1 . 1 Drone Launches . | . . . . . Drone Recoveries . | . . . . . Exploration | -11 -10 -10 -9 -9 ------------- Run | Jun Mat Min Mat Min Turns Passed 5148 | 65 2385 955 1646 97 Spaces Moved 2207 | 45 1298 367 451 46 Core 13 | 13 . . . . Treads . | . . . . . Legs 2008 | 32 1298 367 311 . Wheels 186 | . . . 140 46 Hover . | . . . . . Flight . | . . . . . Fastest Speed 50 | 50 120 120 120 120 Average Speed 187 | 108 150 232 269 128 Slowest Speed 400 | 120 190 330 400 160 Overloaded Moves . | . . . . . Propulsion Burnouts . | . . . . . Robots Hopped . | . . . . . Cave-ins Triggered . | . . . . . Exploration Rate (%) 47 | 3 97 80 42 17 Regions Visited 4 Branch Regions 2 Pre-discovered Areas . | . . . . . Known Exits Taken 1 | . . 1 . . Unknown Exits Taken 3 | 1 1 . 1 . Scrap Searched 1 | . . 1 . . Spaces Dug 1 | . 1 . . . Terrain Destroyed 1 | . 1 . . . Melee 1 | . 1 . . . Projectile . | . . . . . AOE . | . . . . . Terrain Rammed . | . . . . . Walls Destroyed . | . . . . . Machines Disabled . | . . . . . Actions | -11 -10 -10 -9 -9 --------- Run | Jun Mat Min Mat Min Total 2852 | 59 1596 435 696 66 Wait 198 | . 130 12 52 4 Move 2203 | 44 1297 366 450 46 Hop . | . . . . . Pick Up 72 | 8 21 8 35 . Fast Attach 3 | . 1 2 . . Attach 40 | 6 9 . 20 5 Detach 9 | . 6 . 3 . Swap 53 | . 22 12 18 1 Drop 42 | . 17 10 15 . Fire 198 | 1 68 21 98 10 Melee 33 | . 25 4 4 . Ram . | . . . . . Kick 1 | . . . 1 . Crush . | . . . . . Escape Stasis . | . . . . . Rewire . | . . . . . Trap . | . . . . . Miscellaneous . | . . . . . Route ------- -11/Junkyard -10/Materials (discovered 4 exits: *Mat x3 / [*Min]) -10/Mines (discovered 2 exits: *Mat x2) -9/Materials -9/Mines (discovered 2 exits: [*Mat x2]) History --------- Turn | Location | Event 4 | -11/Junkyard | Discovered new exit (range 15) 66 | -11/Junkyard | Entered Materials 309 | -10/Materials | Build established: Mutant 584 | -10/Materials | Discovered new exit (range 11) 673 | -10/Materials | Discovered new exit (range 14) 830 | -10/Materials | Discovered new exit (range 16) 1271 | -10/Materials | Discovered new exit (range 15) 2451 | -10/Materials | Entered Mines 2509 | -10/Mines | Identified exit to Materials 2587 | -10/Mines | Build established: Scavenger-Mutant 2668 | -10/Mines | Core integrity fell below 50% 2789 | -10/Mines | Received a Rocket Launcher from a helpful Derelict 2995 | -10/Mines | Assisted by bots powering up and referring to "LRC-V3" 3073 | -10/Mines | Discovered exit to Materials (range 8) 3406 | -10/Mines | Entered Materials 3406 | -9/Materials | Accompanied by 1 ally 3406 | -9/Materials | Evolved 2 slots: Utility x2 3737 | -9/Materials | Build established: Mutant 4132 | -9/Materials | Lost 4 parts (1p1u2w) 4418 | -9/Materials | Build established: Scavenger-Mutant 4658 | -9/Materials | Core integrity fell below 50% 4709 | -9/Materials | Lost 3 parts (1u2w) 4913 | -9/Materials | Discovered new exit (range 12) 5052 | -9/Materials | Entered Mines 5070 | -9/Mines | Discovered new exit (range 12) 5076 | -9/Mines | Discovered new exit (range 13) 5093 | -9/Mines | Assembled infested the area 5096 | -9/Mines | Learned Materials security intel 5132 | -9/Mines | Core integrity fell below 20% 5143 | -9/Mines | Met 8R-AWN 5149 | -9/Mines | Destroyed by D-53 Grenadier with Mini Grenade Launcher Last Messages --------------- 05135_ Imp. Medium Laser destroyed. 05137_ Imp. Heat Sink destroyed. 05139_ Sensor Array destroyed. 05139_ Imp. Medium Laser destroyed. 05139_ Weight Redist. System destroyed. 8R-AWN: Hm, I'm not getting any readings that show these Assembled are different than what we have already... But you... you look interesting. Maybe they'll want to see you. Come along little bot, it's safer with us than out here, anyway. 05144_ The unstable cave ceiling collapses. 05145_ HV Slug penetrates D-53 Grenadier. 05145_ Penetrated by HV Slug. 05145_ HV Slug penetrates Earth. 05146_ The unstable cave ceiling collapses. 05148_ HV Slug penetrates Earth. 05148_ HV Slug penetrates D-53 Grenadier. 05148_ D-53 Grenadier suffers critical hit (Destroy). 05148_ Penetrated by HV Slug. 05149_ The unstable cave ceiling collapses. 05149_ Titanium Leg destroyed. Map ----- +----------------------------------------------------+ | ?????????????????????????????????????????????????? | | ?????????????????????????????????????????????????? | | ?????????????????????????????????????????????????? | | ?????????????????????????????????????????????????? | | ?????????????????????????????????????????????????? | | ?????????????????????????????????????????????????? | | ?????????????????????????????????????????????????? | | ?????????????????????????????????????????????????? | | ?????????????????????????????????????????????????? | | ?????????????????????????????????????????????????? | | ?????????????????????????????????????????????????? | | ????????????????????##???????????????????????????? | | ????????????????????? ??????????????????????????? | | ????????????????????? ??????????????????????????? | | ????????????????????? ??????????????????????????? | | ?????????????????????? ??????????????????????????? | | ?????????????????????? ?????????????????????????? | | ?????????????????????? ?????????????????????????? | | ??????????????????????? ?????????????????????????? | | ??????????????????????? #?##??########???????????? | | ?????????????????????###k# #### #???????????? | | ??????????## ######### ## < #???????????? | | ??? < " #???????????? | | ??????????######## ## #%" #???????????? | | ???????????????### ## # #" #???????????? | | ?????????????### ## @ # #???????????? | | ???########### ## d # ###???????????? | | ???# ## ### # # #????????????? | | ???# #?## #????????????? | | ???# ## ##??# # #????????????? | | ?????## ##???# #### ##????????????? | | ?????# ##????# ???# ##?????????????? | | ??# ##?????#?????# % ###?????????????? | | ?# """ ##????????????# % #???????????????? | | # """ ###?????????????# % ##???????????????? | | """ ##???????????????## g# ????????????????? | | #?????????????????##%# #???????????????? | | #### #??????????????????#%!?#???????????????? | | ????## ##??????????????????? ]?????????????????? | | ?????#####???????????????????? ?????????????????? | | ?????????????????????????????? ????????????????? | | ?????????????????????????????? %????????????????? | | ??????????????????????????????# %???????????????? | | ??????????????????????????????? ????????????????? | | ???????????????????????????????# ????????????????? | | ?????????????????????????????????????????????????? | | ?????????????????????????????????????????????????? | | ?????????????????????????????????????????????????? | | ?????????????????????????????????????????????????? | | | +----------------------------------------------------+ Best States ------------- Heat Dissipation 42 Energy Generation 14 Energy Capacity 280 Matter Stores 490 Matter Capacity 500 Sight Range 16 Robot Scan Range 14 Terrain Scan Range 14 Terrain Scan Density 10 Additional Mass Support 6 Core Shielding 20 Power Shielding 33 Evasion (%) 55 Targeting Accuracy 5 Item Schematics ----------------- None Robot Schematics ------------------ None Fabricated ------------ Nothing Alien Tech Used ----------------- None Achievements -------------- Slippery One Challenges ------------ None Game ------ Seed GuidedFireWheel Manual? 0 Play Time 01:07:30 Cumulative 6.7 hours Start 2023.06.12 @ 02:29:34 End 2023.06.12 @ 03:36:40 Sessions 1 Manual Loads 0 Difficulty Rogue Special Mode None Game No. 6 Rogue 6 Adventurer 0 Explorer 0 Win Type - Total 0 Types 0/0/0/0/0/0/0/0/0 Lore% 4 Gallery% 10 Achievement% 8 Wizard Run 0 Options --------- ASCII 0 Keyboard 0 Movement Mouse Keybinds 0 Fullscreen 0 Font 18/SmallcapsGlow Map View 66x50 Tactical HUD 1 Map Filters NONE Filters NONE Steam 1 RUN: 01fb3191-b968-48b8-b76d-b2f105c86826